lending/lending_fUSD_20260119
["ID","MTS","AMOUNT","RATE_DAILY","PERIOD"]
[402717326,1768831842533,-500.0,0.00017725,2]
[402717327,1768831842542,-500.0,0.00017725,2]
[402717328,1768831842552,-150.0,0.00017725,2]
[402717329,1768831842561,-449.0,0.00017725,2]
[402717330,1768831842570,-3473.0,0.00017727,2]
[402717331,1768831842579,-615.0,0.00017727,2]
[402717332,1768831842588,-1332.0,0.00017727,2]
[402717333,1768831842597,-1268.869,0.00017727,2]
[402717334,1768831842606,-351.0,0.00017727,2]
[402717335,1768831842616,-1202.0,0.00017736,2]
[402717336,1768831842625,-915.0,0.00017736,2]
[402717337,1768831842635,-2440.0,0.00017736,2]
[402717338,1768831842644,-4826.0,0.00017736,2]
[402717339,1768831842654,-6562.0,0.00017736,2]
[402717340,1768831842663,-1000.0,0.00017753,2]
[402717341,1768831842672,-624.9530238,0.00017755,2]
[402717342,1768831842681,-222.5,0.00017757,2]
[402717343,1768831842690,-1000.0,0.00017775,2]
[402717344,1768831842699,-500.0,0.00017779,2]
[402717345,1768831842708,-500.0,0.00017779,2]
[402717346,1768831842717,-150.0,0.00017779,2]
[402717347,1768831842726,-449.0,0.00017779,2]
[402717348,1768831842735,-1000.0,0.00017791,2]
[402717349,1768831842744,-1000.0,0.00017798,2]
[402717350,1768831842753,-1000.0,0.000178,2]
[402717351,1768831842763,-200.0,0.000178,6]
[402717352,1768831842772,-222.5,0.00017805,2]
[402717353,1768831842782,-271.0,0.00017808,2]
[402717354,1768831842791,-150.0,0.00017808,2]
[402717355,1768831842801,-1000.0,0.00017808,2]
[402717356,1768831842810,-1000.0,0.00017809,2]
[402717357,1768831842820,-346.00006,0.0001782,2]
[402717358,1768831842829,-346.00007,0.0001782,2]
[402717359,1768831842838,-1002.10968086,0.00017822,2]
[402717360,1768831842848,-168.0,0.00017827,2]
[402717361,1768831842857,-1000.0,0.00017832,2]
[402717362,1768831842867,-500.0,0.00017834,2]
[402717363,1768831842876,-500.0,0.00017834,2]
[402717364,1768831842885,-157.1948729,0.00017834,2]
[402717365,1768831842895,-449.0,0.00017834,2]
[402717366,1768831842904,-4444.0,0.00017837,2]
[402717367,1768831842913,-1000.0,0.00017837,2]
[402717368,1768831842923,-222.5,0.00017854,2]
[402717369,1768831842932,-200.0,0.00017856,2]
[402717371,1768831842942,-1000.0,0.00017856,2]
[402717373,1768831842951,-150.0,0.00017863,2]
[402717375,1768831842960,-1155.0,0.00017865,2]
[402717377,1768831842969,-177.51312027,0.00017873,2]
[402717379,1768831842979,-213.49,0.00017874,2]
[402717380,1768831842988,-177.51312027,0.00017887,2]
[402717382,1768831842997,-500.0,0.00017889,2]
[402717384,1768831843006,-500.0,0.00017889,2]
[402717385,1768831843015,-449.0,0.00017889,2]
[402717386,1768831843024,-500.0,0.00017899,2]
[402717387,1768831843033,-500.0,0.00017899,2]
[402717388,1768831843042,-329.00023562,0.000179,2]
[402717389,1768831843051,-1992.6875,0.000179,2]
[402717390,1768831843060,-33225.602,0.000179,2]
[402717391,1768831843069,-1000.0,0.000179,2]
[402717392,1768831843079,-177.51312027,0.000179,2]
[402717393,1768831843089,-1000.0,0.000179,2]
[402717394,1768831843099,-9755.85091521,0.000179,2]
[402717395,1768831843108,-375.0469762,0.000179,2]
[402717396,1768831843118,-200.0,0.000179,6]
[402717397,1768831843128,-165.75900184,0.000179,2]
[402717398,1768831843137,-165.75900182,0.000179,2]
[402717399,1768831843147,-165.75900182,0.000179,2]
[402717400,1768831843156,-165.75900182,0.000179,2]
[402717401,1768831843165,-165.75900182,0.000179,2]
[402717402,1768831843175,-165.75900182,0.000179,2]
[402717403,1768831843184,-807.19864938,0.000179,2]
[402717404,1768831843194,-9760.67279141,0.000179,2]
[402717405,1768831843203,-1073.81137867,0.000179,2]
[402717406,1768831843213,-222.5,0.00017903,2]
[402717407,1768831843222,-150.0,0.00017918,2]
[402717408,1768831843231,-159.99379814,0.00017918,2]
[402717409,1768831843240,-1000.0,0.00017919,2]
[402717410,1768831843250,-5800.0,0.00017926,2]
[402717411,1768831843260,-5800.0,0.00017935,2]
[402717412,1768831843269,-5800.0,0.00017943,2]
[402717413,1768831843278,-500.0,0.00017944,2]
[402717414,1768831843288,-449.0,0.00017944,2]
[402717415,1768831843299,-222.5,0.00017951,2]
[402717416,1768831843310,-5800.0,0.00017952,2]
[402717417,1768831843320,-1000.0,0.00017954,2]
[402717418,1768831843329,-5800.0,0.0001796,2]
[402717419,1768831843340,-5800.0,0.00017968,2]
[402717420,1768831843350,-1000.0,0.00017971,2]
[402717421,1768831843359,-1155.0,0.00017972,2]
[402717422,1768831843371,-150.0,0.00017972,2]
[402717423,1768831843381,-500.0,0.00017973,2]
[402717424,1768831843390,-500.0,0.00017973,2]
[402717425,1768831843401,-500.0,0.00017973,2]
[402717426,1768831843410,-150.0,0.00017973,2]
[402717427,1768831843421,-150.0,0.00017973,2]
[402717428,1768831843430,-5800.0,0.00017977,2]
[402717429,1768831843440,-5800.0,0.00017985,2]
[402717430,1768831843449,-324.79281993,0.0001799,2]
[402717431,1768831843459,-324.79281993,0.0001799,2]
[402717432,1768831843469,-5800.0,0.00017994,2]
[402717433,1768831843478,-151.0,0.00017997,2]
[402717434,1768831843488,-500.0,0.00017999,2]
[402717436,1768831843497,-449.0,0.00017999,2]
[402717438,1768831843507,-300.0,0.00017999,2]
[402717440,1768831843516,-300.0,0.00017999,2]
[402717442,1768831843525,-500.0,0.00017999,2]
[402717443,1768831843535,-500.0,0.00017999,2]
[402717444,1768831843544,-500.0,0.00017999,2]
[402717445,1768831843554,-500.0,0.00017999,2]
[402717446,1768831843563,-300.0,0.00017999,2]
[402717447,1768831843573,-666.0,0.00017999,2]
[402717449,1768831843583,-500.0,0.00017999,2]
[402717451,1768831843593,-500.0,0.00017999,2]
[402717453,1768831843602,-500.0,0.00017999,2]
[402717455,1768831843612,-163.26702471,0.00017999,2]
[402717457,1768831843621,-500.0,0.00017999,2]
[402717459,1768831843631,-500.0,0.00017999,2]
[402717460,1768831843640,-500.0,0.00017999,2]
[402717461,1768831843649,-500.0,0.00017999,2]
[402717462,1768831843659,-300.0,0.00017999,2]
[402717463,1768831843669,-666.0,0.00017999,2]
[402717464,1768831843679,-300.0,0.00017999,2]
[402717465,1768831843688,-3821.0,0.00018,2]
[402717466,1768831843698,-150.0,0.00018,2]
[402717467,1768831843709,-150.0,0.00018,2]
[402717468,1768831843719,-150.0,0.00018,2]
[402717469,1768831843729,-150.0,0.00018,2]
[402717470,1768831843739,-150.0,0.00018,2]
[402717471,1768831843748,-150.0,0.00018,2]
[402717472,1768831843758,-150.0,0.00018,2]
[402717473,1768831843767,-3762811.81036493,0.00018,2]
[402717474,1768831843776,-379667.04264617,0.00018,2]
[402717475,1768831843786,-890216.13939881,0.00018,2]
[402717476,1768831843795,-500.0,0.00018,2]
[402717477,1768831843804,-598800.48054173,0.00018,2]
[402717478,1768831843983,-359.14456207,0.0001535,2]
[402717479,1768831844286,-140.85543793,0.0001535,2]
[402717480,1768831844298,-500.0,0.0001535,2]
[402717481,1768831844308,-164.59,0.00015355,2]
[402717482,1768831844318,-164.59,0.00015355,2]
[402717483,1768831844328,-164.59,0.00015355,2]
[402717484,1768831844340,-164.59,0.00015355,2]
[402717485,1768831844350,-3952803.50738294,0.00018,2]
[402717486,1768831844359,-266626.47443528,0.00018,2]
[402717487,1768831845197,-1553.73338953,0.00018,2]
[402717488,1768831845209,-586.80897448,0.00018,2]
[402717489,1768831845220,-250.87916865,0.00018,2]
[402717490,1768831845479,-151.0,0.00015973,2]
[402717491,1768831845488,-751.0,0.00018,2]
[402717494,1768831845797,-645.9652858,0.00015364,2]
[402717495,1768831845811,-151.0,0.00015973,2]
[402717496,1768831845821,-1370.00393729,0.000179,2]
[402717497,1768831845830,-1099517.40231027,0.00018,2]
[402717498,1768831845855,-1016.65390737,0.00018,2]
[402717502,1768831845953,151.65027421,0.00015265,2]
[402717503,1768831846309,33225.602,0.00015264,2]
[402717504,1768831846347,-269.99999995,0.00017736,2]
[402717505,1768831846364,-296.00000005,0.00017736,2]
[402717506,1768831846374,-76.22784995,0.00018,2]
[402717508,1768831846385,-262.9,0.00018,2]
[402717509,1768831847054,-630.21210057,0.00018,2]
[402717510,1768831847074,-1523.28417236,0.00018,2]
[402717511,1768831847086,-558.99868603,0.00018,2]
[402717512,1768831860012,-279.78711307,0.0001535,2]
[402717513,1768831861578,10000.01,0.00015253,2]
[402717514,1768831861604,10000.01,0.00015253,2]
[402717515,1768831861630,10000.01,0.00015253,2]
[402717516,1768831861656,10000.01,0.00015253,2]
[402717517,1768831861681,10000.01,0.00015253,2]
[402717518,1768831861707,10000.01,0.00015253,2]
[402717519,1768831861738,939999.94,0.00015253,2]
[402717520,1768831876330,1000.0,0.00015264,2]
[402717521,1768831882400,306.713,0.00015255,2]
[402717522,1768831894938,2500.0,0.00015264,2]
[402717523,1768831995213,13755.0818,0.00015264,2]
[402717524,1768832009674,294235.13976969,0.00015251,2]
[402717525,1768832016288,-357.61699633,0.00015251,2]
[402717526,1768832022700,-225.77812456,0.00015251,2]
[402717527,1768832024757,-272.00039123,0.00015251,2]
[402717528,1768832029049,-231.39722472,0.00015251,2]
[402717529,1768832032668,-318.31153409,0.00015251,2]
[402717530,1768832037386,-300.0,0.00015251,2]
[402717531,1768832039369,-327.60277528,0.00015251,2]
[402717532,1768832045314,-300.0,0.0001525,2]
[402717533,1768832047307,-359.84593088,0.00015251,2]
[402717535,1768832320991,174.16924253,0.00015164,2]
[402717536,1768832347712,2500.0,0.00015151,2]
[402717537,1768832384620,-1200.0,0.0001525,2]
[402717538,1768832384650,-300.0,0.0001525,2]
[402717539,1768832384678,-252.12630652,0.0001525,2]
[402717540,1768832440244,1796.8400986,0.00015164,2]
[402717542,1768832452768,1140.69650577,0.00015164,2]
[402717543,1768832463875,759.5531,0.00015151,2]
[402717545,1768832469891,81406.7213,0.00015151,2]
[402717546,1768832476124,2500.0,0.00015151,2]
[402717547,1768832499866,-300.0,0.00015249,2]
[402717548,1768832499901,-500.0,0.0001525,2]
[402717549,1768832499933,-500.00000001,0.0001525,2]
[402717550,1768832499968,-500.0,0.0001525,2]
[402717551,1768832500003,-500.0,0.0001525,2]
[402717552,1768832500040,-500.0,0.0001525,2]
[402717553,1768832500076,-500.0,0.0001525,2]
[402717554,1768832500112,-500.0,0.0001525,2]
[402717555,1768832500147,-500.0,0.0001525,2]
[402717556,1768832500181,-500.0,0.0001525,2]
[402717557,1768832508137,-500.0,0.0001525,2]
[402717558,1768832508172,-500.0,0.0001525,2]
[402717559,1768832508207,-500.0,0.0001525,2]
[402717560,1768832508241,-500.0,0.0001525,2]
[402717561,1768832508276,-500.0,0.0001525,2]
[402717562,1768832508311,-500.0,0.0001525,2]
[402717563,1768832508348,-500.0,0.0001525,2]
[402717564,1768832508383,-500.0,0.0001525,2]
[402717565,1768832508416,-500.0,0.0001525,2]
[402717566,1768832508450,-500.0,0.0001525,2]
[402717567,1768832511895,-500.0,0.0001525,2]
[402717568,1768832511933,-500.0,0.0001525,2]
[402717569,1768832511969,-615.84289179,0.0001525,2]
[402717570,1768832512004,-500.0,0.0001525,2]
[402717571,1768832512037,-500.0,0.0001525,2]
[402717572,1768832512070,-500.0,0.0001525,2]
[402717573,1768832512106,-500.0,0.0001525,2]
[402717574,1768832512144,-500.0,0.0001525,2]
[402717575,1768832512181,-500.0,0.0001525,2]
[402717576,1768832512221,-268.32421642,0.0001525,2]
[402717577,1768832516120,1154.508209,0.00015173,2]
[402717578,1768832619529,479.79,0.00015151,2]
[402717581,1768832625789,27355.8765,0.00015151,2]
[402717583,1768832631832,2500.0,0.00015151,2]
[402717586,1768832637195,226.00756031,0.00015164,2]
[402717591,1768832645844,291.242939,0.0001496,2]
[402717608,1768832708147,486.0,0.00018,30]
[402717609,1768832724790,539.19453453,0.000152,2]
[402717610,1768832735016,5272.46458787,0.0001,2]
[402717611,1768832751597,14902.93542239,0.000133,2]
[402717612,1768832751623,113334.58183697,0.000133,2]
[402717613,1768832759188,1967.83766776,8e-05,2]
[402717614,1768832764595,-1200.0,0.00015249,2]
[402717615,1768832764633,-500.0,0.00015249,2]
[402717616,1768832764669,-500.0,0.00015249,2]
[402717617,1768832764712,-500.0,0.00015249,2]
[402717618,1768832764749,-500.0,0.00015249,2]
[402717619,1768832764789,-500.0,0.00015249,2]
[402717620,1768832764827,-500.0,0.00015249,2]
[402717621,1768832764865,-500.0,0.00015249,2]
[402717622,1768832764903,-100.01,0.00015249,2]
[402717623,1768832765135,-399.99,0.00015249,2]
[402717624,1768832765176,-500.0,0.00015249,2]
[402717625,1768832765217,-500.0,0.00015249,2]
[402717626,1768832765259,-500.0,0.00015249,2]
[402717627,1768832765300,-563.67994694,0.00015249,2]
[402717628,1768832765333,-277.0,0.0001525,2]
[402717629,1768832765859,-208.19814597,0.00015251,2]
[402717630,1768832767739,-7864.38033608,0.00015251,2]
[402717631,1768832770506,-10000.01,0.00015251,2]
[402717632,1768832770670,-10000.01,0.00015251,2]
[402717633,1768832774901,1714.3459,0.00015151,2]
[402717634,1768832787021,2500.0,0.00015151,2]
[402717635,1768832822709,6209.1915295,0.00015,2]
[402717636,1768832826493,6712.1881,0.00015151,2]
[402717637,1768832828330,4107.580673,7.945e-05,2]
[402717638,1768832830152,11264.54649201,0.00015164,2]
[402717639,1768832831729,236.8728,0.00015151,2]
[402717640,1768832832086,1523.10865275,0.0001305,2]
[402717641,1768832837857,1992.6875,0.00015151,2]
[402717669,1768832883272,33225.602,0.00015151,2]
[402717671,1768832886391,1000.0,0.000135,2]
[402717679,1768832896488,10560.9878295,0.00015,2]
[402717698,1768832919609,208.87885477,0.0001515,2]
[402717712,1768832924300,262.16490419,0.00015164,2]
[402717714,1768832925548,208.87885477,0.00015157,2]
[402717715,1768832925746,-187.17,0.00015241,2]
[402717716,1768832925785,-503.40807885,0.00015242,2]
[402717717,1768832925820,-300.0,0.00015249,2]
[402717718,1768832925903,-8018.8538423,0.0001525,2]
[402717728,1768832931592,208.87885477,0.00015164,2]
[402717729,1768832933055,-318.4502376,0.0001525,2]
[402717730,1768832933084,-500.0,0.0001525,2]
[402717731,1768832933112,-556.62599191,0.0001525,2]
[402717732,1768832933142,-300.0,0.0001525,2]
[402717733,1768832933172,-500.0,0.0001525,2]
[402717734,1768832933201,-500.0,0.0001525,2]
[402717735,1768832933231,-500.0,0.0001525,2]
[402717736,1768832933260,-500.0,0.0001525,2]
[402717737,1768832933289,-500.0,0.0001525,2]
[402717738,1768832933319,-500.0,0.0001525,2]
[402717739,1768832933349,-149.85754098,0.0001525,2]
[402717740,1768832933613,-350.14245902,0.0001525,2]
[402717742,1768832937244,2500.0,0.00015151,2]
[402717753,1768832966255,11044.93107606,0.00015164,2]
[402717768,1768832980802,-500.0,0.0001525,2]
[402717769,1768832980834,-300.0,0.0001525,2]
[402717770,1768832980867,-373.86707065,0.0001525,2]
[402717771,1768832980898,-250.0,0.0001525,2]
[402717772,1768832980927,-434.39659156,0.0001525,2]
[402717773,1768832981062,-6283.48267558,0.00015251,2]
[402717774,1768832981102,-10000.01,0.00015251,2]
[402717777,1768832981313,-10000.01,0.00015251,2]
[402717779,1768832986048,236.8728,0.00015151,2]
[402717780,1768832986290,-10000.01,0.00015251,2]
[402717781,1768832986438,-10000.01,0.00015251,2]
[402717782,1768832986606,-10000.01,0.00015251,2]
[402717785,1768833007597,641.63701,7.945e-05,2]
[402717789,1768833025904,-164.59,0.00015241,2]
[402717790,1768833025935,-164.59,0.00015241,2]
[402717791,1768833025964,-164.59,0.00015241,2]
[402717792,1768833025993,-164.59,0.00015241,2]
[402717793,1768833026023,-300.0,0.0001525,2]
[402717794,1768833026057,-1200.0,0.0001525,2]
[402717795,1768833026198,-5683.29,0.00015251,2]
[402717797,1768833029137,-10000.01,0.00015251,2]
[402717807,1768833032274,-5091.21307187,0.00015251,2]
[402717808,1768833032286,-598241.66302372,0.00015251,2]
[402717809,1768833032295,-277.0,0.00015251,2]
[402717810,1768833032305,-1000.0,0.00015264,2]
[402717811,1768833032315,-500.0,0.00015348,2]
[402717812,1768833032324,-500.0,0.00015348,2]
[402717813,1768833032334,-500.0,0.00015364,2]
[402717814,1768833032343,-500.0,0.00015364,2]
[402717815,1768833032353,-500.0,0.00015364,2]
[402717816,1768833032363,-500.0,0.00015364,2]
[402717817,1768833032373,-500.0,0.00015364,2]
[402717818,1768833032383,-500.0,0.00015364,2]
[402717819,1768833032392,-500.0,0.00015364,2]
[402717820,1768833032402,-366.59852564,0.00015364,2]
[402717821,1768833032411,-500.0,0.00015364,2]
[402717822,1768833032421,-500.0,0.00015364,2]
[402717823,1768833032430,-500.0,0.00015364,2]
[402717824,1768833032440,-249.28950426,0.00015364,2]
[402717825,1768833032450,-500.0,0.00015364,2]
[402717826,1768833032460,-500.0,0.00015364,2]
[402717827,1768833032470,-500.0,0.00015364,2]
[402717828,1768833032480,-500.0,0.00015364,2]
[402717829,1768833032489,-500.0,0.00015364,2]
[402717830,1768833032500,-507.73546325,0.000154,2]
[402717831,1768833032510,-11044.93107598,0.00015428,2]
[402717832,1768833032520,-11264.54649197,0.00015468,2]
[402717833,1768833032529,-262.16490418,0.00015555,2]
[402717834,1768833032539,-3234.66271045,0.0001564,2]
[402717835,1768833032548,-11044.93107598,0.00015692,2]
[402717836,1768833032558,-151.0,0.00015753,2]
[402717837,1768833032567,-151.0,0.00015755,2]
[402717838,1768833032576,-151.0,0.00015755,2]
[402717839,1768833032586,-151.0,0.00015755,2]
[402717840,1768833032595,-151.0,0.00015758,2]
[402717841,1768833032604,-151.0,0.00015758,2]
[402717842,1768833032613,-11264.54649197,0.00015772,2]
[402717843,1768833032623,-706.0,0.00015785,2]
[402717844,1768833032632,-193.10964488,0.00015807,2]
[402717845,1768833032641,-562.0,0.00015865,2]
[402717846,1768833032650,-1114.0,0.00015896,2]
[402717847,1768833032660,-200.0,0.000159,5]
[402717848,1768833032670,-1000.0,0.00015918,2]
[402717849,1768833032679,-195.38414496,0.00015935,2]
[402717850,1768833032691,-807.19864938,0.00015935,2]
[402717851,1768833032703,-262.16490418,0.00015946,2]
[402717852,1768833032714,-11044.93107598,0.00015956,2]
[402717853,1768833032724,-500.0,0.00015973,2]
[402717854,1768833032735,-9999.99,0.00015973,2]
[402717855,1768833032744,-999.99,0.00015973,2]
[402717856,1768833032754,-500.0,0.00015973,2]
[402717857,1768833032763,-500.0,0.00015973,2]
[402717858,1768833032773,-500.0,0.00015973,2]
[402717859,1768833032783,-500.0,0.00015973,2]
[402717860,1768833032793,-501.15779202,0.00015973,2]
[402717861,1768833032804,-500.0,0.00015973,2]
[402717862,1768833032814,-500.0,0.00015973,2]
[402717863,1768833032824,-500.0,0.00015973,2]
[402717864,1768833032834,-500.0,0.00015973,2]
[402717865,1768833032844,-500.0,0.00015973,2]
[402717866,1768833032855,-500.0,0.00015973,2]
[402717867,1768833032867,-500.0,0.00015973,2]
[402717868,1768833032878,-500.0,0.00015973,2]
[402717869,1768833032887,-500.0,0.00015973,2]
[402717870,1768833032898,-500.0,0.00015973,2]
[402717871,1768833032909,-500.0,0.00015973,2]
[402717872,1768833032919,-500.0,0.00015973,2]
[402717873,1768833032929,-500.0,0.00015973,2]
[402717874,1768833032940,-500.0,0.00015973,2]
[402717875,1768833032950,-500.0,0.00015973,2]
[402717876,1768833032960,-500.0,0.00015973,2]
[402717877,1768833032969,-216.52854662,0.0001599,2]
[402717878,1768833032978,-216.52854662,0.0001599,2]
[402717879,1768833032988,-151.0,0.00015997,2]
[402717880,1768833032997,-151.0,0.00015997,2]
[402717881,1768833033007,-555118.61494031,0.00016,4]
[402717882,1768833033019,-574.6,0.00016,4]
[402717883,1768833033049,-13639.03406531,0.00016,4]
[402717884,1768833033062,-458.44747329,0.00016,4]
[402717885,1768833033074,-387.32183681,0.00016,4]
[402717886,1768833033085,-4600.10039142,0.00016,4]
[402717887,1768833033097,-30843.81998203,0.00016,4]
[402717888,1768833033108,-9884.07987425,0.00016,4]
[402717889,1768833033160,-336.22313328,0.00016,4]
[402717890,1768833033171,-689.16136204,0.00016,4]
[402717892,1768833038142,-1001.402075,0.00015504,2]
[402717893,1768833038206,-300.6,0.00015504,2]
[402717894,1768833038325,-415.15147597,0.00015504,2]
[402717895,1768833038341,-1522.84644903,0.00015504,2]
[402717896,1768833038351,-151.0,0.00015752,2]
[402717897,1768833038361,-152.17,0.00015754,2]
[402717898,1768833038371,-3336978.59886721,0.00016,4]
[402717899,1768833038381,-500.0,0.00016035,2]
[402717900,1768833038391,-9999.99,0.00016036,2]
[402717901,1768833038401,-150.99,0.00016036,2]
[402717902,1768833038411,-150.99,0.00016036,2]
[402717903,1768833038421,-9999.99,0.00016036,2]
[402717904,1768833038430,-9999.99,0.00016036,2]
[402717905,1768833038440,-6755.84,0.00016049,2]
[402717906,1768833038449,-11264.54649197,0.00016076,2]
[402717907,1768833038459,-338.0,0.00016096,2]
[402717908,1768833038469,-152.0,0.00016107,2]
[402717909,1768833038479,-151.0,0.00016107,2]
[402717910,1768833038488,-480.0,0.00016128,2]
[402717911,1768833038499,-426.0,0.0001616,2]
[402717912,1768833038508,-500.0,0.00016165,2]
[402717913,1768833038518,-247.0,0.00016193,2]
[402717915,1768833038528,-18158.65,0.000162,5]
[402717917,1768833038536,-11044.93107598,0.0001622,2]
[402717919,1768833038547,-723.0,0.00016223,2]
[402717921,1768833038556,-492.0,0.00016225,2]
[402717923,1768833038566,-1000.0,0.00016236,2]
[402717925,1768833038575,-500.0,0.00016247,2]
[402717927,1768833038585,-950.29,0.00016255,2]
[402717928,1768833038595,-788.0,0.00016256,2]
[402717929,1768833038605,-340.0,0.00016257,2]
[402717930,1768833038615,-500.0,0.00016274,2]
[402717932,1768833038624,-1547.0,0.00016288,2]
[402717934,1768833038634,-414.0,0.00016289,2]
[402717936,1768833038643,-1500.0,0.00016303,2]
[402717937,1768833038653,-1934.0,0.00016321,2]
[402717938,1768833038663,-263.0,0.00016321,2]
[402717939,1768833038674,-262.16490418,0.00016337,2]
[402717940,1768833038683,-206.4,0.00016351,2]
[402717941,1768833038696,-1882.0,0.00016353,2]
[402717942,1768833038705,-433.0,0.00016353,2]
[402717943,1768833038715,-578.20924308,0.00016374,2]
[402717944,1768833038728,-1000.0,0.00016374,2]
[402717945,1768833038738,-1000.0,0.00016374,2]
[402717946,1768833038748,-3008.62089601,0.00016374,2]
[402717947,1768833038757,-1000.0,0.00016374,2]
[402717948,1768833038767,-1000.0,0.00016374,2]
[402717949,1768833038777,-1000.0,0.00016374,2]
[402717950,1768833038787,-1000.0,0.00016374,2]
[402717951,1768833038797,-574.12855637,0.00016374,2]
[402717952,1768833038806,-1000.0,0.00016374,2]
[402717953,1768833038816,-1000.0,0.00016374,2]
[402717954,1768833038825,-174.61919141,0.00016374,2]
[402717955,1768833038835,-1000.0,0.00016374,2]
[402717956,1768833038845,-460.32,0.00016374,2]
[402717957,1768833038859,-1000.0,0.00016374,2]
[402717958,1768833038869,-1000.0,0.00016374,2]
[402717959,1768833038879,-4444.0,0.00016374,2]
[402717960,1768833038889,-213.88458873,0.00016374,2]
[402717961,1768833038899,-500.0,0.00016374,2]
[402717962,1768833038909,-500.0,0.00016374,2]
[402717963,1768833038919,-1000.0,0.00016374,2]
[402717964,1768833038931,-1000.0,0.00016374,2]
[402717965,1768833038941,-500.0,0.00016374,2]
[402717966,1768833038951,-1000.0,0.00016374,2]
[402717967,1768833038961,-500.0,0.00016374,2]
[402717968,1768833038971,-280.67236905,0.00016374,2]
[402717969,1768833038981,-500.0,0.00016374,2]
[402717970,1768833038992,-250.0,0.00016374,2]
[402717971,1768833039003,-500.0,0.00016374,2]
[402717972,1768833039013,-250.0,0.00016374,2]
[402717973,1768833039023,-620.0,0.00016374,2]
[402717974,1768833039034,-500.0,0.00016374,2]
[402717975,1768833039044,-500.0,0.00016374,2]
[402717976,1768833039056,-500.0,0.00016374,2]
[402717977,1768833039066,-500.0,0.00016374,2]
[402717978,1768833039076,-500.0,0.00016374,2]
[402717979,1768833039086,-500.0,0.00016374,2]
[402717980,1768833039096,-500.0,0.00016374,2]
[402717981,1768833039106,-11264.54649197,0.0001638,2]
[402717982,1768833039116,-355.0,0.00016385,2]
[402717983,1768833039126,-385.0,0.00016417,2]
[402717984,1768833039136,-300.0,0.00016438,2]
[402717985,1768833039145,-500.0,0.00016438,2]
[402717986,1768833039155,-500.0,0.00016438,2]
[402717987,1768833039165,-500.0,0.00016438,2]
[402717988,1768833039176,-500.0,0.00016438,2]
[402717989,1768833039186,-500.0,0.00016438,2]
[402717990,1768833039195,-240.79564959,0.00016438,2]
[402717991,1768833039205,-500.0,0.00016438,2]
[402717992,1768833039215,-500.0,0.00016438,2]
[402717993,1768833039224,-500.0,0.00016438,2]
[402717994,1768833039234,-500.0,0.00016438,2]
[402717995,1768833039244,-500.0,0.00016438,2]
[402717996,1768833039253,-500.0,0.00016438,2]
[402717997,1768833039263,-500.0,0.00016438,2]
[402717998,1768833039273,-500.0,0.00016438,2]
[402717999,1768833039283,-500.0,0.00016438,2]
[402718000,1768833039293,-500.0,0.00016438,2]
[402718001,1768833039302,-500.0,0.00016438,2]
[402718002,1768833039312,-500.0,0.00016438,2]
[402718003,1768833039321,-500.0,0.00016438,2]
[402718004,1768833039331,-500.0,0.00016438,2]
[402718005,1768833039341,-500.0,0.00016438,2]
[402718006,1768833039350,-500.0,0.00016438,2]